[Event "Titled Tuesday Blitz February 22 Early 2022"]
[White "Baskin, Robert"]
[Black "Pavlidou, Ekaterini"]
[WhiteFideId "24662402"]
[BlackFideId "4213262"]
[WhiteElo "2488"]
[BlackElo "2127"]
[Result "1/2-1/2"]
[Round "03"]
[TimeControl "180+1"]
[Date "2022.02.22"]
[WhiteClock "0:00:07"]
[BlackClock "0:00:14"]

1. d4 {[%clk 0:03:00]}  Nf6 {[%clk 0:02:58]} 2. c4 {[%clk 0:02:58]}  e6 {[%clk 0:02:59]} 3. Nf3 {[%clk 0:02:56]}  b6 {[%clk 0:02:58]} 4. g3 {[%clk 0:02:55]}  Ba6 {[%clk 0:02:58]} 5. b3 {[%clk 0:02:53]}  d5 {[%clk 0:02:56]} 6. cxd5 {[%clk 0:02:52]}  exd5 {[%clk 0:02:55]} 7. Bg2 {[%clk 0:02:50]}  Bb4+ {[%clk 0:02:55]} 8. Bd2 {[%clk 0:02:49]}  Bd6 {[%clk 0:02:52]} 9. Nc3 {[%clk 0:02:44]}  c6 {[%clk 0:02:51]} 10. O-O {[%clk 0:02:44]}  O-O {[%clk 0:02:51]} 11. Qc2 {[%clk 0:02:42]}  Re8 {[%clk 0:02:50]} 12. Rfe1 {[%clk 0:02:40]}  Ne4 {[%clk 0:02:47]} 13. Nxe4 {[%clk 0:02:37]}  dxe4 {[%clk 0:02:45]} 14. Ne5 {[%clk 0:02:35]}  Bxe5 {[%clk 0:02:29]} 15. dxe5 {[%clk 0:02:35]}  Rxe5 {[%clk 0:02:29]} 16. Bf4 {[%clk 0:02:28]}  Re8 {[%clk 0:02:14]} 17. Red1 {[%clk 0:02:25]}  Qc8 {[%clk 0:02:10]} 18. Rd4 {[%clk 0:02:20]}  c5 {[%clk 0:02:06]} 19. Rxe4 {[%clk 0:02:18]}  Nc6 {[%clk 0:02:04]} 20. e3 {[%clk 0:02:05]}  Nb4 {[%clk 0:02:03]} 21. Rxe8+ {[%clk 0:02:03]}  Qxe8 {[%clk 0:02:02]} 22. Qf5 {[%clk 0:01:53]}  Bd3 {[%clk 0:01:57]} 23. Qh5 {[%clk 0:01:48]}  Bg6 {[%clk 0:01:54]} 24. Qg4 {[%clk 0:01:43]}  Rd8 {[%clk 0:01:50]} 25. Rd1 {[%clk 0:01:16]}  Nxa2 {[%clk 0:01:45]} 26. Bc6 {[%clk 0:01:11]}  Qf8 {[%clk 0:01:38]} 27. h4 {[%clk 0:01:02]}  h5 {[%clk 0:01:30]} 28. Qf3 {[%clk 0:01:02]}  Nc3 {[%clk 0:01:25]} 29. Rxd8 {[%clk 0:01:00]}  Qxd8 {[%clk 0:01:24]} 30. Bg5 {[%clk 0:00:57]}  Qd1+ {[%clk 0:01:23]} 31. Qxd1 {[%clk 0:00:57]}  Nxd1 {[%clk 0:01:23]} 32. Bd8 {[%clk 0:00:53]}  Bc2 {[%clk 0:01:20]} 33. Bc7 {[%clk 0:00:46]}  Bxb3 {[%clk 0:01:16]} 34. Bb8 {[%clk 0:00:45]}  a5 {[%clk 0:01:11]} 35. Ba7 {[%clk 0:00:45]}  a4 {[%clk 0:01:07]} 36. Bxb6 {[%clk 0:00:44]}  c4 {[%clk 0:00:52]} 37. Kf1 {[%clk 0:00:38]}  a3 {[%clk 0:00:50]} 38. Bf3 {[%clk 0:00:23]}  Nc3 {[%clk 0:00:39]} 39. Bd4 {[%clk 0:00:22]}  Na4 {[%clk 0:00:29]} 40. Bc6 {[%clk 0:00:18]}  Nb2 {[%clk 0:00:29]} 41. Ke1 {[%clk 0:00:15]}  Nd3+ {[%clk 0:00:28]} 42. Ke2 {[%clk 0:00:13]}  Nb4 {[%clk 0:00:28]} 43. Be4 {[%clk 0:00:12]}  a2 {[%clk 0:00:24]} 44. Kd2 {[%clk 0:00:11]}  g6 {[%clk 0:00:21]} 45. Bb2 {[%clk 0:00:10]}  f5 {[%clk 0:00:21]} 46. Bf3 {[%clk 0:00:06]}  Kf8 {[%clk 0:00:20]} 47. Kc3 {[%clk 0:00:04]}  Nc2 {[%clk 0:00:19]} 48. Bd5 {[%clk 0:00:04]}  a1=Q {[%clk 0:00:19]} 49. Bxa1 {[%clk 0:00:04]}  Nxa1 {[%clk 0:00:19]} 50. Bxc4 {[%clk 0:00:04]}  Bxc4 {[%clk 0:00:19]} 51. Kxc4 {[%clk 0:00:05]}  Nc2 {[%clk 0:00:20]} 52. Kd3 {[%clk 0:00:05]}  Ne1+ {[%clk 0:00:20]} 53. Ke2 {[%clk 0:00:05]}  Nc2 {[%clk 0:00:20]} 54. Kd3 {[%clk 0:00:06]}  Nb4+ {[%clk 0:00:21]} 55. Kc4 {[%clk 0:00:06]}  Nc6 {[%clk 0:00:21]} 56. Kd5 {[%clk 0:00:06]}  Ne7+ {[%clk 0:00:22]} 57. Ke6 {[%clk 0:00:06]}  Ke8 {[%clk 0:00:19]} 58. Kf6 {[%clk 0:00:05]}  Kf8 {[%clk 0:00:19]} 59. Ke6 {[%clk 0:00:05]}  Ng8 {[%clk 0:00:18]} 60. e4 {[%clk 0:00:03]}  fxe4 {[%clk 0:00:17]} 61. Ke5 {[%clk 0:00:04]}  Kf7 {[%clk 0:00:14]} 62. Kxe4 {[%clk 0:00:04]}  Nf6+ {[%clk 0:00:15]} 63. Kf4 {[%clk 0:00:04]}  Nd5+ {[%clk 0:00:14]} 64. Kg5 {[%clk 0:00:04]}  Kg7 {[%clk 0:00:14]} 65. f3 {[%clk 0:00:04]}  Ne3 {[%clk 0:00:14]} 66. g4 {[%clk 0:00:04]}  hxg4 {[%clk 0:00:14]} 67. fxg4 {[%clk 0:00:05]}  Nd5 {[%clk 0:00:13]} 68. h5 {[%clk 0:00:06]}  gxh5 {[%clk 0:00:13]} 69. gxh5 {[%clk 0:00:07]}  Nf6 {[%clk 0:00:13]} 70. h6+ {[%clk 0:00:07]}  Kh7 {[%clk 0:00:14]} 71. Kxf6 {[%clk 0:00:07]}  Kxh6 {[%clk 0:00:14]} 1/2-1/2


[Site "https://www.chess.com"]

[Event "Titled Tuesday Blitz February 22 Early 2022"]
[White "Borisova, Ekaterina"]
[Black "Begunov, Konstantin"]
[WhiteFideId "34124184"]
[BlackFideId "4118510"]
[WhiteElo "2034"]
[BlackElo "2262"]
[Result "0-1"]
[Round "03"]
[TimeControl "180+1"]
[Date "2022.02.22"]
[WhiteClock "0:00:03"]
[BlackClock "0:00:17"]

1. d4 {[%clk 0:03:00]}  d5 {[%clk 0:02:02]} 2. c4 {[%clk 0:02:59]}  c6 {[%clk 0:02:02]} 3. cxd5 {[%clk 0:02:59]}  cxd5 {[%clk 0:02:02]} 4. Bf4 {[%clk 0:02:58]}  Nf6 {[%clk 0:02:03]} 5. Nc3 {[%clk 0:02:57]}  Nc6 {[%clk 0:02:04]} 6. e3 {[%clk 0:02:58]}  a6 {[%clk 0:02:04]} 7. Rc1 {[%clk 0:02:58]}  Bg4 {[%clk 0:02:05]} 8. Nf3 {[%clk 0:02:55]}  e6 {[%clk 0:02:04]} 9. Qb3 {[%clk 0:02:55]}  Bxf3 {[%clk 0:02:02]} 10. gxf3 {[%clk 0:02:56]}  Na5 {[%clk 0:02:01]} 11. Qa4+ {[%clk 0:02:56]}  Nc6 {[%clk 0:02:02]} 12. Qb3 {[%clk 0:02:57]}  Na5 {[%clk 0:02:02]} 13. Qa4+ {[%clk 0:02:57]}  Nc6 {[%clk 0:02:02]} 14. Rg1 {[%clk 0:02:55]}  g6 {[%clk 0:01:58]} 15. Qb3 {[%clk 0:02:50]}  Na5 {[%clk 0:01:58]} 16. Qa4+ {[%clk 0:02:50]}  Nc6 {[%clk 0:01:58]} 17. Bd3 {[%clk 0:02:47]}  Bd6 {[%clk 0:01:57]} 18. Bxd6 {[%clk 0:02:43]}  Qxd6 {[%clk 0:01:57]} 19. f4 {[%clk 0:02:44]}  O-O {[%clk 0:01:56]} 20. h4 {[%clk 0:02:41]}  b5 {[%clk 0:01:56]} 21. Qd1 {[%clk 0:02:38]}  Kh8 {[%clk 0:01:50]} 22. Rg5 {[%clk 0:02:02]}  Rfc8 {[%clk 0:01:34]} 23. h5 {[%clk 0:01:54]}  Nxh5 {[%clk 0:01:34]} 24. Rxh5 {[%clk 0:01:46]}  gxh5 {[%clk 0:01:35]} 25. Qxh5 {[%clk 0:01:47]}  f5 {[%clk 0:01:35]} 26. Ke2 {[%clk 0:01:39]}  Ra7 {[%clk 0:01:34]} 27. a3 {[%clk 0:01:20]}  b4 {[%clk 0:01:26]} 28. Na4 {[%clk 0:01:19]}  Nxd4+ {[%clk 0:01:25]} 29. exd4 {[%clk 0:01:08]}  Rxc1 {[%clk 0:01:24]} 30. Nc5 {[%clk 0:00:53]}  Rxc5 {[%clk 0:01:10]} 31. dxc5 {[%clk 0:00:49]}  Qxc5 {[%clk 0:01:11]} 32. Kf3 {[%clk 0:00:37]}  Re7 {[%clk 0:00:55]} 33. Qg5 {[%clk 0:00:32]}  bxa3 {[%clk 0:00:50]} 34. Qf6+ {[%clk 0:00:24]}  Kg8 {[%clk 0:00:50]} 35. bxa3 {[%clk 0:00:24]}  Qxa3 {[%clk 0:00:48]} 36. Ke2 {[%clk 0:00:18]}  a5 {[%clk 0:00:47]} 37. Qg5+ {[%clk 0:00:13]}  Kf8 {[%clk 0:00:47]} 38. Qf6+ {[%clk 0:00:12]}  Ke8 {[%clk 0:00:48]} 39. Bb5+ {[%clk 0:00:12]}  Kd8 {[%clk 0:00:45]} 40. Qh8+ {[%clk 0:00:12]}  Kc7 {[%clk 0:00:45]} 41. Qe5+ {[%clk 0:00:12]}  Qd6 {[%clk 0:00:41]} 42. Qc3+ {[%clk 0:00:12]}  Kb6 {[%clk 0:00:40]} 43. Bd3 {[%clk 0:00:12]}  Rc7 {[%clk 0:00:38]} 44. Qb2+ {[%clk 0:00:10]}  Qb4 {[%clk 0:00:39]} 45. Qh8 {[%clk 0:00:09]}  Qxf4 {[%clk 0:00:35]} 46. Qb8+ {[%clk 0:00:09]}  Kc5 {[%clk 0:00:31]} 47. Qa8 {[%clk 0:00:06]}  Qb4 {[%clk 0:00:26]} 48. Qf8+ {[%clk 0:00:04]}  Kd4 {[%clk 0:00:19]} 49. Qf6+ {[%clk 0:00:03]}  e5 {[%clk 0:00:20]} 50. Qh4+ {[%clk 0:00:03]}  e4 {[%clk 0:00:19]} 51. Qf6+ {[%clk 0:00:04]}  Kc5 {[%clk 0:00:19]} 52. Qf8+ {[%clk 0:00:04]}  Kc6 {[%clk 0:00:18]} 53. Qe8+ {[%clk 0:00:02]}  Kb7 {[%clk 0:00:17]} 54. Bb1 {[%clk 0:00:01]}  Qxb1 {[%clk 0:00:16]} 55. Qd8 {[%clk 0:00:02]}  Qb5+ {[%clk 0:00:16]} 56. Ke3 {[%clk 0:00:02]}  a4 {[%clk 0:00:17]} 57. Qd6 {[%clk 0:00:02]}  Qb6+ {[%clk 0:00:17]} 58. Kf4 {[%clk 0:00:03]}  Qxd6+ {[%clk 0:00:17]} 0-1


[Site "https://www.chess.com"]

[Event "Titled Tuesday Blitz February 22 Early 2022"]
[White "Buscar, Michael"]
[Black "Pinheiro, Iung Alicio de O."]
[WhiteFideId "2603616"]
[BlackFideId "2104350"]
[WhiteElo "2010"]
[BlackElo "2584"]
[Result "0-1"]
[Round "03"]
[TimeControl "180+1"]
[Date "2022.02.22"]
[WhiteClock "0:00:01"]
[BlackClock "0:00:14"]

1. c4 {[%clk 0:02:58]}  c5 {[%clk 0:02:58]} 2. g3 {[%clk 0:02:56]}  g6 {[%clk 0:02:56]} 3. Bg2 {[%clk 0:02:56]}  Bg7 {[%clk 0:02:56]} 4. e3 {[%clk 0:02:56]}  Nc6 {[%clk 0:02:51]} 5. Ne2 {[%clk 0:02:56]}  h5 {[%clk 0:02:51]} 6. h4 {[%clk 0:02:55]}  d6 {[%clk 0:02:48]} 7. Nbc3 {[%clk 0:02:45]}  Bg4 {[%clk 0:02:45]} 8. Qa4 {[%clk 0:02:32]}  Bd7 {[%clk 0:02:39]} 9. Qd1 {[%clk 0:02:24]}  Nf6 {[%clk 0:02:38]} 10. d4 {[%clk 0:02:24]}  Ng4 {[%clk 0:02:34]} 11. d5 {[%clk 0:02:12]}  Na5 {[%clk 0:02:17]} 12. b3 {[%clk 0:02:02]}  b5 {[%clk 0:02:04]} 13. cxb5 {[%clk 0:01:57]}  a6 {[%clk 0:02:04]} 14. bxa6 {[%clk 0:01:52]}  Bc8 {[%clk 0:02:01]} 15. Bb2 {[%clk 0:01:48]}  Bxa6 {[%clk 0:02:00]} 16. O-O {[%clk 0:01:39]}  Rb8 {[%clk 0:01:55]} 17. Na4 {[%clk 0:01:36]}  Nf6 {[%clk 0:01:36]} 18. Qd2 {[%clk 0:01:27]}  O-O {[%clk 0:01:35]} 19. Rfc1 {[%clk 0:01:26]}  Bb5 {[%clk 0:01:31]} 20. Bc3 {[%clk 0:01:23]}  Ra8 {[%clk 0:01:19]} 21. Nb2 {[%clk 0:01:23]}  Qc7 {[%clk 0:01:00]} 22. b4 {[%clk 0:01:20]}  cxb4 {[%clk 0:00:47]} 23. Bxb4 {[%clk 0:01:20]}  Qd8 {[%clk 0:00:47]} 24. a4 {[%clk 0:01:15]}  Bd7 {[%clk 0:00:47]} 25. Nd4 {[%clk 0:01:09]}  Ng4 {[%clk 0:00:45]} 26. Ra3 {[%clk 0:00:47]}  Ne5 {[%clk 0:00:39]} 27. Nc6 {[%clk 0:00:32]}  Bxc6 {[%clk 0:00:34]} 28. dxc6 {[%clk 0:00:29]}  Qc7 {[%clk 0:00:34]} 29. f4 {[%clk 0:00:22]}  Ng4 {[%clk 0:00:33]} 30. Nc4 {[%clk 0:00:20]}  Nxc4 {[%clk 0:00:30]} 31. Rxc4 {[%clk 0:00:20]}  Rfd8 {[%clk 0:00:27]} 32. a5 {[%clk 0:00:20]}  d5 {[%clk 0:00:27]} 33. Rc1 {[%clk 0:00:17]}  Ra6 {[%clk 0:00:27]} 34. Bf1 {[%clk 0:00:16]}  Rxc6 {[%clk 0:00:27]} 35. Rxc6 {[%clk 0:00:13]}  Qxc6 {[%clk 0:00:28]} 36. a6 {[%clk 0:00:13]}  e5 {[%clk 0:00:25]} 37. a7 {[%clk 0:00:12]}  Ra8 {[%clk 0:00:25]} 38. Qc3 {[%clk 0:00:10]}  Qe6 {[%clk 0:00:20]} 39. Qc7 {[%clk 0:00:07]}  exf4 {[%clk 0:00:19]} 40. Qxf4 {[%clk 0:00:07]}  Bh6 {[%clk 0:00:18]} 41. Qb8+ {[%clk 0:00:06]}  Kh7 {[%clk 0:00:16]} 42. Bc3 {[%clk 0:00:05]}  Bxe3+ {[%clk 0:00:17]} 43. Kh1 {[%clk 0:00:03]}  Qe4+ {[%clk 0:00:17]} 44. Bg2 {[%clk 0:00:04]}  Qc2 {[%clk 0:00:14]} 45. Qxa8 {[%clk 0:00:01]}  Qd1+ {[%clk 0:00:14]} 0-1


[Site "https://www.chess.com"]

[Event "Titled Tuesday Blitz February 22 Early 2022"]
[White "Cherniaiev, Tykhon"]
[Black "Vidit, Santosh Gujrathi"]
[WhiteFideId "14182360"]
[BlackFideId "5029465"]
[WhiteElo "2289"]
[BlackElo "2654"]
[Result "0-1"]
[Round "03"]
[TimeControl "180+1"]
[Date "2022.02.22"]
[WhiteClock "0:00:01"]
[BlackClock "0:00:20"]

1. Nf3 {[%clk 0:03:00]}  d5 {[%clk 0:03:00]} 2. c4 {[%clk 0:02:59]}  d4 {[%clk 0:03:00]} 3. b4 {[%clk 0:02:59]}  c5 {[%clk 0:03:00]} 4. e3 {[%clk 0:02:58]}  dxe3 {[%clk 0:02:55]} 5. fxe3 {[%clk 0:02:59]}  cxb4 {[%clk 0:02:56]} 6. d4 {[%clk 0:02:59]}  Nf6 {[%clk 0:02:55]} 7. Bd3 {[%clk 0:03:00]}  g6 {[%clk 0:02:56]} 8. O-O {[%clk 0:03:00]}  Bg7 {[%clk 0:02:55]} 9. a3 {[%clk 0:03:00]}  bxa3 {[%clk 0:02:55]} 10. Bxa3 {[%clk 0:03:01]}  O-O {[%clk 0:02:55]} 11. Nbd2 {[%clk 0:03:01]}  Re8 {[%clk 0:02:43]} 12. Ne5 {[%clk 0:02:58]}  Nbd7 {[%clk 0:02:39]} 13. Ndf3 {[%clk 0:02:56]}  Nxe5 {[%clk 0:02:37]} 14. Nxe5 {[%clk 0:02:57]}  Qc7 {[%clk 0:02:33]} 15. Qf3 {[%clk 0:02:55]}  Rb8 {[%clk 0:02:30]} 16. Bb2 {[%clk 0:02:20]}  a6 {[%clk 0:02:08]} 17. Bc3 {[%clk 0:02:19]}  b6 {[%clk 0:02:02]} 18. Qc6 {[%clk 0:02:16]}  Qxc6 {[%clk 0:01:58]} 19. Nxc6 {[%clk 0:02:16]}  Ra8 {[%clk 0:01:58]} 20. Rab1 {[%clk 0:02:04]}  Nd7 {[%clk 0:01:56]} 21. Be4 {[%clk 0:02:04]}  Bb7 {[%clk 0:01:43]} 22. Nxe7+ {[%clk 0:02:04]}  Rxe7 {[%clk 0:01:44]} 23. Bxb7 {[%clk 0:02:04]}  Ra7 {[%clk 0:01:38]} 24. Bd5 {[%clk 0:02:01]}  Rc7 {[%clk 0:01:26]} 25. Bb4 {[%clk 0:01:58]}  Rxe3 {[%clk 0:01:18]} 26. Rxf7 {[%clk 0:01:53]}  Kh8 {[%clk 0:01:18]} 27. Bd6 {[%clk 0:01:37]}  Bxd4 {[%clk 0:01:14]} 28. Kh1 {[%clk 0:01:35]}  Ra7 {[%clk 0:01:14]} 29. Bf4 {[%clk 0:00:55]}  Re8 {[%clk 0:01:06]} 30. Rd1 {[%clk 0:00:39]}  Bg7 {[%clk 0:00:30]} 31. Bc6 {[%clk 0:00:22]}  Rf8 {[%clk 0:00:31]} 32. Rxf8+ {[%clk 0:00:20]}  Nxf8 {[%clk 0:00:32]} 33. Be3 {[%clk 0:00:18]}  Rc7 {[%clk 0:00:27]} 34. Bd5 {[%clk 0:00:18]}  b5 {[%clk 0:00:27]} 35. cxb5 {[%clk 0:00:17]}  axb5 {[%clk 0:00:27]} 36. Rb1 {[%clk 0:00:14]}  Rc3 {[%clk 0:00:25]} 37. Bg1 {[%clk 0:00:12]}  Rd3 {[%clk 0:00:24]} 38. Rxb5 {[%clk 0:00:09]}  Rd1 {[%clk 0:00:23]} 39. Bf3 {[%clk 0:00:05]}  Rc1 {[%clk 0:00:23]} 40. Rd5 {[%clk 0:00:02]}  Ne6 {[%clk 0:00:22]} 41. g3 {[%clk 0:00:02]}  Bd4 {[%clk 0:00:20]} 42. Rxd4 {[%clk 0:00:01]}  Nxd4 {[%clk 0:00:20]} 43. Bg4 {[%clk 0:00:01]}  h5 {[%clk 0:00:20]} 0-1


[Site "https://www.chess.com"]

[Event "Titled Tuesday Blitz February 22 Early 2022"]
[White "Chigaev, Maksim"]
[Black "Moiseenko, Alexander"]
[WhiteFideId "4108116"]
[BlackFideId "14102560"]
[WhiteElo "2502"]
[BlackElo "2577"]
[Result "1/2-1/2"]
[Round "03"]
[TimeControl "180+1"]
[Date "2022.02.22"]
[WhiteClock "0:00:06"]
[BlackClock "0:00:21"]

1. d4 {[%clk 0:03:00]}  Nf6 {[%clk 0:02:59]} 2. Nf3 {[%clk 0:03:01]}  d5 {[%clk 0:02:58]} 3. Bf4 {[%clk 0:03:00]}  c5 {[%clk 0:02:58]} 4. e3 {[%clk 0:03:00]}  Nc6 {[%clk 0:02:58]} 5. Be2 {[%clk 0:02:59]}  Bf5 {[%clk 0:02:55]} 6. dxc5 {[%clk 0:02:48]}  e6 {[%clk 0:02:55]} 7. Nbd2 {[%clk 0:02:49]}  Bxc5 {[%clk 0:02:54]} 8. O-O {[%clk 0:02:49]}  O-O {[%clk 0:02:53]} 9. c4 {[%clk 0:02:50]}  h6 {[%clk 0:02:50]} 10. a3 {[%clk 0:02:45]}  Bd6 {[%clk 0:02:35]} 11. cxd5 {[%clk 0:02:38]}  exd5 {[%clk 0:02:29]} 12. Bxd6 {[%clk 0:02:36]}  Qxd6 {[%clk 0:02:30]} 13. Nb3 {[%clk 0:02:36]}  Rac8 {[%clk 0:02:26]} 14. Rc1 {[%clk 0:02:35]}  Be4 {[%clk 0:02:26]} 15. Nbd4 {[%clk 0:02:24]}  Rfd8 {[%clk 0:02:17]} 16. b4 {[%clk 0:02:18]}  a5 {[%clk 0:01:57]} 17. Nxc6 {[%clk 0:01:51]}  bxc6 {[%clk 0:01:46]} 18. bxa5 {[%clk 0:01:29]}  Qxa3 {[%clk 0:01:45]} 19. Qd2 {[%clk 0:01:19]}  Ra8 {[%clk 0:01:32]} 20. Nd4 {[%clk 0:01:13]}  c5 {[%clk 0:01:09]} 21. Ra1 {[%clk 0:00:55]}  Qb4 {[%clk 0:01:04]} 22. Qxb4 {[%clk 0:00:55]}  cxb4 {[%clk 0:01:05]} 23. Ra4 {[%clk 0:00:55]}  b3 {[%clk 0:00:53]} 24. Nxb3 {[%clk 0:00:55]}  Bc2 {[%clk 0:00:53]} 25. Bd1 {[%clk 0:00:56]}  Bd3 {[%clk 0:00:43]} 26. Re1 {[%clk 0:00:55]}  Ne4 {[%clk 0:00:43]} 27. Ra1 {[%clk 0:00:45]}  Rdb8 {[%clk 0:00:37]} 28. Nd4 {[%clk 0:00:39]}  Rb2 {[%clk 0:00:34]} 29. Be2 {[%clk 0:00:34]}  Bxe2 {[%clk 0:00:25]} 30. Rxe2 {[%clk 0:00:35]}  Rxa5 {[%clk 0:00:25]} 31. Rf1 {[%clk 0:00:26]}  Rxe2 {[%clk 0:00:23]} 32. Nxe2 {[%clk 0:00:26]}  Ra2 {[%clk 0:00:22]} 33. Nd4 {[%clk 0:00:24]}  g6 {[%clk 0:00:20]} 34. g3 {[%clk 0:00:15]}  Kg7 {[%clk 0:00:20]} 35. Kg2 {[%clk 0:00:10]}  h5 {[%clk 0:00:20]} 36. h4 {[%clk 0:00:10]}  Kf6 {[%clk 0:00:20]} 37. Kg1 {[%clk 0:00:05]}  Kg7 {[%clk 0:00:20]} 38. Kg2 {[%clk 0:00:05]}  Kf6 {[%clk 0:00:20]} 39. Kg1 {[%clk 0:00:05]}  Kg7 {[%clk 0:00:21]} 40. Kg2 {[%clk 0:00:06]} 1/2-1/2


[Site "https://www.chess.com"]

[Event "Titled Tuesday Blitz February 22 Early 2022"]
[White "Colas, Joshua"]
[Black "Pesotskiy, Mikhail"]
[WhiteFideId "2044447"]
[BlackFideId "34164453"]
[WhiteElo "2347"]
[BlackElo "2010"]
[Result "1-0"]
[Round "03"]
[TimeControl "180+1"]
[Date "2022.02.22"]
[WhiteClock "0:00:11"]
[BlackClock "0:00:26"]

1. Nf3 {[%clk 0:02:34]}  Nf6 {[%clk 0:02:58]} 2. c4 {[%clk 0:02:33]}  e6 {[%clk 0:02:58]} 3. g3 {[%clk 0:02:30]}  b6 {[%clk 0:02:58]} 4. Bg2 {[%clk 0:02:30]}  Bb7 {[%clk 0:02:59]} 5. O-O {[%clk 0:02:29]}  Be7 {[%clk 0:03:00]} 6. b3 {[%clk 0:02:27]}  O-O {[%clk 0:03:00]} 7. Nc3 {[%clk 0:02:23]}  c5 {[%clk 0:03:01]} 8. d4 {[%clk 0:02:22]}  d5 {[%clk 0:02:54]} 9. cxd5 {[%clk 0:02:18]}  Nxd5 {[%clk 0:02:54]} 10. Nxd5 {[%clk 0:02:17]}  Bxd5 {[%clk 0:02:54]} 11. dxc5 {[%clk 0:02:13]}  Bxc5 {[%clk 0:02:55]} 12. Bb2 {[%clk 0:02:13]}  Nd7 {[%clk 0:02:48]} 13. e4 {[%clk 0:01:58]}  Bxe4 {[%clk 0:02:39]} 14. b4 {[%clk 0:01:58]}  Be7 {[%clk 0:02:25]} 15. Qd4 {[%clk 0:01:51]}  Nf6 {[%clk 0:02:25]} 16. Qe3 {[%clk 0:01:41]}  Qd3 {[%clk 0:02:17]} 17. Qf4 {[%clk 0:01:37]}  Bd6 {[%clk 0:02:07]} 18. Qg5 {[%clk 0:01:22]}  h6 {[%clk 0:02:04]} 19. Qe3 {[%clk 0:00:52]}  Qxe3 {[%clk 0:01:55]} 20. fxe3 {[%clk 0:00:53]}  Bxb4 {[%clk 0:01:55]} 21. Bxf6 {[%clk 0:00:45]}  gxf6 {[%clk 0:01:56]} 22. Nd4 {[%clk 0:00:41]}  Bxg2 {[%clk 0:01:51]} 23. Kxg2 {[%clk 0:00:41]}  f5 {[%clk 0:01:39]} 24. Nc6 {[%clk 0:00:40]}  Bc5 {[%clk 0:01:37]} 25. Kf3 {[%clk 0:00:35]}  Rfc8 {[%clk 0:01:33]} 26. Ne5 {[%clk 0:00:35]}  Kg7 {[%clk 0:01:32]} 27. Rfd1 {[%clk 0:00:34]}  Rd8 {[%clk 0:01:32]} 28. Nc6 {[%clk 0:00:33]}  Rxd1 {[%clk 0:01:18]} 29. Rxd1 {[%clk 0:00:34]}  Rc8 {[%clk 0:01:13]} 30. Nxa7 {[%clk 0:00:26]}  Ra8 {[%clk 0:01:12]} 31. Rd7 {[%clk 0:00:27]}  Kf8 {[%clk 0:00:55]} 32. e4 {[%clk 0:00:24]}  fxe4+ {[%clk 0:00:55]} 33. Kxe4 {[%clk 0:00:25]}  b5 {[%clk 0:00:36]} 34. Nxb5 {[%clk 0:00:23]}  Rxa2 {[%clk 0:00:36]} 35. h4 {[%clk 0:00:20]}  Ra4+ {[%clk 0:00:31]} 36. Kf3 {[%clk 0:00:14]}  Kg7 {[%clk 0:00:31]} 37. Nc7 {[%clk 0:00:13]}  Kg6 {[%clk 0:00:30]} 38. g4 {[%clk 0:00:12]}  h5 {[%clk 0:00:30]} 39. gxh5+ {[%clk 0:00:12]}  Kxh5 {[%clk 0:00:31]} 40. Rxf7 {[%clk 0:00:12]}  Kxh4 {[%clk 0:00:27]} 41. Nxe6 {[%clk 0:00:13]}  Bd6 {[%clk 0:00:26]} 42. Rh7# {[%clk 0:00:11]} 1-0


[Site "https://www.chess.com"]

[Event "Titled Tuesday Blitz February 22 Early 2022"]
[White "Corrales Jimenez, Fidel"]
[Black "Safarli, Eltaj"]
[WhiteFideId "3506690"]
[BlackFideId "13402129"]
[WhiteElo "2541"]
[BlackElo "2634"]
[Result "0-1"]
[Round "03"]
[TimeControl "180+1"]
[Date "2022.02.22"]
[WhiteClock "0:00:10"]
[BlackClock "0:01:20"]

1. d4 {[%clk 0:02:10]}  Nf6 {[%clk 0:02:58]} 2. c4 {[%clk 0:02:09]}  e6 {[%clk 0:02:59]} 3. Nc3 {[%clk 0:02:09]}  Bb4 {[%clk 0:02:59]} 4. a3 {[%clk 0:02:08]}  Bxc3+ {[%clk 0:02:59]} 5. bxc3 {[%clk 0:02:09]}  c5 {[%clk 0:02:58]} 6. f3 {[%clk 0:02:09]}  Nc6 {[%clk 0:02:56]} 7. e4 {[%clk 0:02:09]}  d6 {[%clk 0:02:56]} 8. d5 {[%clk 0:02:02]}  Na5 {[%clk 0:02:53]} 9. Bd3 {[%clk 0:02:02]}  b6 {[%clk 0:02:51]} 10. Bg5 {[%clk 0:01:55]}  h6 {[%clk 0:02:50]} 11. Bh4 {[%clk 0:01:55]}  Ba6 {[%clk 0:02:48]} 12. Qe2 {[%clk 0:01:54]}  O-O {[%clk 0:02:48]} 13. Nh3 {[%clk 0:01:53]}  Re8 {[%clk 0:02:35]} 14. O-O {[%clk 0:01:51]}  Qe7 {[%clk 0:02:26]} 15. Rae1 {[%clk 0:01:48]}  exd5 {[%clk 0:02:24]} 16. cxd5 {[%clk 0:01:47]}  Bxd3 {[%clk 0:02:23]} 17. Qxd3 {[%clk 0:01:48]}  c4 {[%clk 0:02:15]} 18. Qc2 {[%clk 0:01:38]}  g5 {[%clk 0:02:04]} 19. Nxg5 {[%clk 0:01:31]}  Nh5 {[%clk 0:01:53]} 20. f4 {[%clk 0:00:48]}  hxg5 {[%clk 0:01:53]} 21. Bxg5 {[%clk 0:00:48]}  f6 {[%clk 0:01:53]} 22. Bh4 {[%clk 0:00:48]}  Qh7 {[%clk 0:01:51]} 23. Re3 {[%clk 0:00:36]}  Nb3 {[%clk 0:01:47]} 24. Qe2 {[%clk 0:00:23]}  Nc5 {[%clk 0:01:46]} 25. f5 {[%clk 0:00:23]}  Kf7 {[%clk 0:01:38]} 26. Rh3 {[%clk 0:00:19]}  Rxe4 {[%clk 0:01:32]} 27. Qd1 {[%clk 0:00:19]}  Nf4 {[%clk 0:01:28]} 28. Rxf4 {[%clk 0:00:15]}  Rxf4 {[%clk 0:01:29]} 29. Bxf6 {[%clk 0:00:15]}  Qxh3 {[%clk 0:01:23]} 30. gxh3 {[%clk 0:00:15]}  Kxf6 {[%clk 0:01:23]} 31. Kh1 {[%clk 0:00:10]}  Rg8 {[%clk 0:01:22]} 32. Qe2 {[%clk 0:00:10]}  Ne4 {[%clk 0:01:20]} 0-1


[Site "https://www.chess.com"]

[Event "Titled Tuesday Blitz February 22 Early 2022"]
[White "Coto Mederos, Michel"]
[Black "Kostiukov, Alexandr"]
[WhiteFideId "3508528"]
[BlackFideId "14108100"]
[WhiteElo "2427"]
[BlackElo "2202"]
[Result "0-1"]
[Round "03"]
[TimeControl "180+1"]
[Date "2022.02.22"]
[WhiteClock "0:01:13"]
[BlackClock "0:01:44"]

1. d4 {[%clk 0:03:00]}  g6 {[%clk 0:02:59]} 2. c4 {[%clk 0:02:55]}  Bg7 {[%clk 0:03:00]} 3. Nc3 {[%clk 0:02:56]}  d6 {[%clk 0:03:00]} 4. e4 {[%clk 0:02:56]}  e5 {[%clk 0:03:01]} 5. Be3 {[%clk 0:02:54]}  exd4 {[%clk 0:03:00]} 6. Bxd4 {[%clk 0:02:53]}  Nf6 {[%clk 0:03:00]} 7. f3 {[%clk 0:02:42]}  Nc6 {[%clk 0:03:00]} 8. Be3 {[%clk 0:02:43]}  O-O {[%clk 0:02:59]} 9. Qd2 {[%clk 0:02:40]}  Be6 {[%clk 0:02:56]} 10. Nh3 {[%clk 0:02:10]}  Ne5 {[%clk 0:02:54]} 11. b3 {[%clk 0:02:05]}  Bxh3 {[%clk 0:02:50]} 12. f4 {[%clk 0:02:05]}  Neg4 {[%clk 0:02:36]} 13. gxh3 {[%clk 0:02:03]}  Nxe3 {[%clk 0:02:36]} 14. Qxe3 {[%clk 0:02:04]}  Nxe4 {[%clk 0:02:33]} 15. Nxe4 {[%clk 0:01:56]}  Bxa1 {[%clk 0:02:33]} 16. Bg2 {[%clk 0:01:56]}  Qh4+ {[%clk 0:02:25]} 17. Ke2 {[%clk 0:01:53]}  Bg7 {[%clk 0:02:24]} 18. Kd1 {[%clk 0:01:43]}  Rae8 {[%clk 0:02:15]} 19. Qf3 {[%clk 0:01:42]}  Bh6 {[%clk 0:02:06]} 20. Rf1 {[%clk 0:01:41]}  f5 {[%clk 0:02:05]} 21. Nc3 {[%clk 0:01:38]}  c6 {[%clk 0:02:02]} 22. Kc2 {[%clk 0:01:34]}  Re6 {[%clk 0:01:59]} 23. Kb1 {[%clk 0:01:16]}  Re1+ {[%clk 0:01:54]} 24. Rxe1 {[%clk 0:01:16]}  Qxe1+ {[%clk 0:01:54]} 25. Kc2 {[%clk 0:01:17]}  Re8 {[%clk 0:01:48]} 26. Bf1 {[%clk 0:01:13]}  Re3 {[%clk 0:01:44]} 0-1


[Site "https://www.chess.com"]